Cogmind - Beta 13 @@@ ROGUE MODE // 2024.05.22 @ 20:56:15 Player: KingCain Result: Destroyed by G-47 Trooper with Particle Gun Performance ------------- Evolutions (2) 1000 Regions Visited (4) 800 Robots Destroyed (21) 105 Value Destroyed (459) 459 Prototype IDs (0) 0 Alien Tech Used (0) 0 Bonus (0) 0 TOTAL SCORE: 2364 Bonus ------- None Cogmind --------- Core Integrity 0/550 Matter 113/300 Energy 100/100 System Corruption 0% Temperature Cool (9) Movement Walking (120) Location -8/Materials Parts ------- > --- POWER (3) -------- (None) > --- PROPULSION (4) --- Aluminum Leg > --- UTILITY (2) ------ (None) > --- WEAPON (2) ------- (None) > --- INVENTORY (5) ---- Improved Power Shielding Peak State ------------ > --- POWER ------------ Light Nuclear Core Light Nuclear Core Light Nuclear Core > --- PROPULSION ------- Armored Wheel > --- UTILITY ---------- Medium Storage Unit Improved Power Shielding > --- WEAPON ----------- Light Assault Rifle > --- INVENTORY -------- Light Ion Engine Improved Power Shielding [Rating: 16] Favorites ----------- Power Light Nuclear Core Engine Light Ion Engine Power Core Light Nuclear Core Propulsion Light Treads Treads Light Treads Leg Aluminum Leg Wheel Wheel Flight Unit Flight Unit Utility Medium Storage Unit Storage Medium Storage Unit Protection Improved Power Shielding Weapon Light Assault Rifle Energy Gun EM Pulse Gun Ballistic Gun Light Assault Rifle Launcher Mini Grenade Launcher Build | -11 -10 -9 -9 -8 ------- Run | Yrd Mat Mat Min Mat Slots Evolved 4 | . . 2 . 2 Power 2 | . . . . 2 Propulsion 2 | . . 2 . . Utility . | . . . . . Weapon . | . . . . . Parts Attached 25 | 4 3 10 1 7 Power 5 | 1 . 1 . 3 Engine 2 | 1 . . . 1 Core 3 | . . 1 . 2 Reactor . | . . . . . Propulsion 14 | 2 . 7 1 4 Treads 2 | 2 . . . . Leg 6 | . . 2 . 4 Wheel 5 | . . 5 . . Hover . | . . . . . Flight 1 | . . . 1 . Utility 3 | . 2 1 . . Device . | . . . . . Storage 2 | . 2 . . . Processor . | . . . . . Hackware . | . . . . . Protection 1 | . . 1 . . Artifact . | . . . . . Weapon 3 | 1 1 1 . . Energy Gun 1 | . 1 . . . Energy Cannon . | . . . . . Ballistic Gun 1 | 1 . . . . Ballistic Cannon . | . . . . . Launcher 1 | . . 1 . . Special Weapon . | . . . . . Impact Weapon . | . . . . . Slashing Weapon . | . . . . . Piercing Weapon . | . . . . . Special Melee Weapon . | . . . . . Unidentified Prototypes . | . . . . . Parts Lost 21 | . 1 7 2 11 Power 4 | . . . . 4 Propulsion 12 | . . 6 2 4 Utility 2 | . . . . 2 Weapon 3 | . 1 1 . 1 Highest Loss Streak 7 | . 1 3 2 7 To Critical Strikes . | . . . . . Average Slot Usage (%) 71 | . 91 78 70 43 Engine 6 | . 14 4 . . Core 7 | . . 6 11 15 Treads 11 | . 28 7 . . Leg 3 | . . 4 . 6 Wheel 8 | . . 15 24 4 Storage 14 | . 22 15 11 5 Protection 4 | . . 6 11 4 Energy Gun 3 | . 11 . . . Ballistic Gun 10 | . 14 11 11 4 Launcher 2 | . . 7 . . Naked Turns 46 | . . . . 46 Heaviest Build 28 | 4 26 27 18 28 Greatest Support 40 | 40 40 40 24 40 Greatest Overweight (x) 9 | . . 2 5 9 Average Overweight (x) . | . . . 1 2 Largest Inventory Capacity 10 | 5 10 10 10 10 Average Capacity 8 | 5 9 10 10 8 Most Carried 4 | . . 4 4 3 Average Carried 1 | . . 2 4 1 Final Capacity 10 | 5 10 10 10 5 Final Carried 4 | . . 4 4 1 Class Distribution -------------------- 97% | Mutant Dominant Class ---------------- Mutant | -10/Materials Mutant | -9/Materials Mutant | -9/Mines Mutant | -8/Materials Resources | -11 -10 -9 -9 -8 ----------- Run | Yrd Mat Mat Min Mat Matter Collected 394 | 210 43 110 31 . Remotely . | . . . . . Salvage Created 347 | . 68 248 31 . Parts 45 | . 6 34 5 . Haulers Intercepted . | . . . . . Recyclers Shooed 2 | . 1 . 1 . Parts Field Recycled . | . . . . . Retrieved Matter . | . . . . . Parts Self-Destructed . | . . . . . Prevented . | . . . . . Kills | -11 -10 -9 -9 -8 ------- Run | Yrd Mat Mat Min Mat Combat Hostiles Destroyed 14 | . 3 9 2 . Guns 7 | . 3 2 2 . AOE 7 | . . 7 . . Classes Destroyed 5 | . 2 3 . . Builder 4 | . . 4 . . Watcher 3 | . 1 2 . . Swarmer 5 | . 3 . 2 . Grunt 7 | . . 7 . . Sentry 2 | . . 2 . . Best Kill Streak 4 | . 3 4 2 . Combat Bots Only 4 | . 3 4 2 . Max Kills in Single Turn 2 | . 1 2 1 . Gunslinging . | . . . . . Exploded 2 | . . 2 . . Melee . | . . . . . Uniques/NPCs Destroyed . | . . . . . Combat | -11 -10 -9 -9 -8 -------- Run | Yrd Mat Mat Min Mat Hostile Shots Fired 337 | . 42 95 43 157 Missed 110 | . 9 35 12 54 Damage Taken 2868 | . 356 1007 255 1250 Core 920 | . 72 237 51 560 Absorbed by Shields . | . . . . . Redirected to Shielding 108 | . . 31 39 38 Core Remaining (%) 66 | 100 71 . 28 . Volleys Fired 60 | . 14 29 15 2 Largest 2 | . 2 2 1 1 Hottest 60 | . 60 50 20 20 Shots Fired 94 | . 28 50 14 2 Gun 73 | . 28 29 14 2 Cannon . | . . . . . Launcher 21 | . . 21 . . Special . | . . . . . Kinetic 59 | . 14 29 14 2 Thermal . | . . . . . Explosive 21 | . . 21 . . Electromagnetic 14 | . 14 . . . Robot Hit Streak 8 | . 8 6 3 1 Robot Miss Streak 6 | . 6 3 3 1 Penetration Max . | . . . . . Secondary Targets 1 | . 1 . . . Max Gunslinging Chain 1 | . 1 . . . Shots Hit Robots 47 | . 12 28 6 1 Core Hits 44 | . 5 32 3 4 Critical Kills . | . . . . . Critical Parts Destroyed . | . . . . . Critical Strikes . | . . . . . Melee Attacks . | . . . . . Impact . | . . . . . Slashing . | . . . . . Piercing . | . . . . . Sneak Attacks . | . . . . . Combat Hostiles . | . . . . . Follow-up Attacks . | . . . . . Damage Inflicted 1298 | . 226 1003 50 19 Guns 392 | . 186 147 50 9 Cannons . | . . . . . Explosions 852 | . 23 829 . . Melee . | . . . . . Ramming 54 | . 17 27 . 10 Kinetic 260 | . 54 147 50 9 Thermal 23 | . 23 . . . Explosive 829 | . . 829 . . Electromagnetic 132 | . 132 . . . Impact . | . . . . . Slashing . | . . . . . Piercing . | . . . . . Highest Corruption 7 | . . 7 7 . Average Corruption 4 | . . 3 7 . Corruption Purged . | . . . . . Corruption Blocked . | . . . . . Effects 10 | . . 6 4 . Matter Fused 4 | . . 3 1 . Heat Flow Errors 2 | . . 1 1 . Energy Discharges 1 | . . 1 . . Parts Rejected 1 | . . . 1 . Data Loss (minor) 1 | . . 1 . . Weapon Failures 1 | . . . 1 . Overload Shots . | . . . . . Overflow Damage . | . . . . . Projectiles . | . . . . . Explosions . | . . . . . Melee . | . . . . . Knockbacks . | . . . . . Impact . | . . . . . Kinetic . | . . . . . Secondary . | . . . . . Self-Inflicted Damage 76 | . 38 38 . . Shots 3 | . 1 2 . . Rammed 6 | . 2 2 1 1 Targets Rammed 18 | . 2 3 1 12 Kicked 12 | . . 1 . 11 Crushed . | . . . . . Highest Temperature 223 | . 52 154 223 10 Average Temperature 30 | . 22 18 118 10 Received Heat Transfer 942 | . 114 405 . 423 Siege Activations . | . . . . . Robots Corrupted . | . . . . . Combat Hostiles . | . . . . . Parts Fried . | . . . . . Impact Corruptions . | . . . . . Robots Melted . | . . . . . Combat Hostiles . | . . . . . Parts Melted . | . . . . . Heat Transferred 50 | . 50 . . . Parts Sabotaged . | . . . . . Parts Stolen . | . . . . . Parts Stripped . | . . . . . Power Chain Reactions 1 | . 1 . . . Alert | -11 -10 -9 -9 -8 ------- Run | Yrd Mat Mat Min Mat Peak Influence 270 | . 84 270 98 56 Initial 31 | . . 31 28 29 Average 63 | . 22 146 61 27 Maximum Alert Level 1 | . . 1 . . Low Security (%) 91 | 100 100 72 100 100 Level 1 8 | . . 27 . . Level 2 . | . . . . . Level 3 . | . . . . . Level 4 . | . . . . . Level 5 . | . . . . . High Security . | . . . . . Max Security . | . . . . . Squads Dispatched 7 | . 1 4 . 2 Investigation . | . . . . . Extermination . | . . . . . Reinforcement 7 | . 1 4 . 2 Assault . | . . . . . Garrison . | . . . . . Intercept . | . . . . . Searches Triggered . | . . . . . Construction Impeded 2 | . . 2 . . Haulers Reinforced . | . . . . . Active Scanning Responses . | . . . . . Cargo Convoy Interrupts . | . . . . . Stealth | -11 -10 -9 -9 -8 --------- Run | Yrd Mat Mat Min Mat Distress Signals 3 | . . 3 . . Communications Jammed . | . . . . . Distress Signals . | . . . . . Times Spotted 53 | . 9 23 6 15 Peak Tracking Total 12 | . 3 4 4 12 Tactical Retreats 6 | . . 3 1 2 Traps | -11 -10 -9 -9 -8 ------- Run | Yrd Mat Mat Min Mat Traps Triggered . | . . . . . Indirectly . | . . . . . Trap Hack Attempts . | . . . . . Triggered . | . . . . . Disarmed . | . . . . . Reprogrammed . | . . . . . Reused . | . . . . . Traps Extracted . | . . . . . Installed . | . . . . . Triggered . | . . . . . Machines | -11 -10 -9 -9 -8 ---------- Run | Yrd Mat Mat Min Mat Machines Disabled . | . . . . . Max in Single Turn . | . . . . . Machines Repaired . | . . . . . Machines Dismantled . | . . . . . Machines Sabotaged . | . . . . . Overloaded Fab Kills . | . . . . . Hacking | -11 -10 -9 -9 -8 --------- Run | Yrd Mat Mat Min Mat Machines Accessed 3 | . 1 1 . 1 Terminals 3 | . 1 1 . 1 Fabricators . | . . . . . Repair Stations . | . . . . . Recycling Units . | . . . . . Scanalyzers . | . . . . . Garrison Access . | . . . . . Total Hacks 6 | . 1 1 . 4 Successful 4 | . 1 1 . 2 Failed 2 | . . . . 2 Catastrophic . | . . . . . Database Lockouts . | . . . . . Manual . | . . . . . Terminals 6 | . 1 1 . 4 Fabricators . | . . . . . Repair Stations . | . . . . . Recycling Units . | . . . . . Scanalyzers . | . . . . . Garrison Access . | . . . . . Terminal Hacks 4 | . 1 1 . 2 Emergency Access Points 1 | . . . . 1 Unreport Threat 1 | . . 1 . . Security Status 1 | . 1 . . . Patrol Status 1 | . . . . 1 Fabricator Hacks . | . . . . . Repair Station Hacks . | . . . . . Recycling Unit Hacks . | . . . . . Scanalyzer . | . . . . . Garrison Access Hacks . | . . . . . Unauthorized Hacks . | . . . . . Terminals . | . . . . . Fabricators . | . . . . . Repair Stations . | . . . . . Recycling Units . | . . . . . Scanalyzers . | . . . . . Garrison Access . | . . . . . Data Cores Recovered . | . . . . . Used . | . . . . . Hacking Detections 1 | . . . . 1 Full Trace Events . | . . . . . Feedback Events . | . . . . . Feedback Blocked . | . . . . . Robot Schematics Acquired . | . . . . . Robots Built . | . . . . . Authchips . | . . . . . Time . | . . . . . Total Robot Build Rating . | . . . . . Part Schematics Acquired . | . . . . . Parts Built . | . . . . . Authchips . | . . . . . Time . | . . . . . Total Part Build Rating . | . . . . . Parts Repaired . | . . . . . Time . | . . . . . Parts Recycled . | . . . . . Recycled Matter . | . . . . . Retrieved Matter . | . . . . . Retrieved Components . | . . . . . Parts Scanalyzed . | . . . . . Part Schematics Acquired . | . . . . . Parts Damaged . | . . . . . Bothacking | -11 -10 -9 -9 -8 ------------ Run | Yrd Mat Mat Min Mat Used RIF Installer . | . . . . . Robots Hacked . | . . . . . Non-combat . | . . . . . Combat . | . . . . . Robot Hacks Applied . | . . . . . Relay Couplers Released . | . . . . . Fabnet Peak Effective % . | . . . . . Robots Rewired . | . . . . . Allies Hacked . | . . . . . Hacks Repelled . | . . . . . Allies | -11 -10 -9 -9 -8 -------- Run | Yrd Mat Mat Min Mat Total Allies . | . . . . . Largest Group . | . . . . . Highest-Rated Group . | . . . . . Highest-Rated Ally . | . . . . . Total Orders . | . . . . . Ally Attacks . | . . . . . Total Damage . | . . . . . Kills . | . . . . . Allies Corrupted . | . . . . . Allies Melted . | . . . . . Intel | -11 -10 -9 -9 -8 ------- Run | Yrd Mat Mat Min Mat Robot Analysis Total . | . . . . . Derelict Logs Recovered . | . . . . . Drone Launches . | . . . . . Drone Recoveries . | . . . . . Exploration | -11 -10 -9 -9 -8 ------------- Run | Yrd Mat Mat Min Mat Turns Passed 1307 | 92 372 410 86 347 Spaces Moved 719 | 63 197 263 36 160 Core 132 | 12 . . 6 114 Treads 272 | 51 197 24 . . Legs 107 | . . 61 . 46 Wheels 204 | . . 178 26 . Hover . | . . . . . Flight 4 | . . . 4 . Fastest Speed 50 | 50 160 80 90 50 Average Speed 148 | 139 160 116 156 189 Slowest Speed 500 | 160 160 240 370 500 Overloaded Moves . | . . . . . Propulsion Burnouts . | . . . . . Robots Hopped . | . . . . . Cave-ins Triggered 1 | . . 1 . . Exploration Rate (%) 19 | 5 39 22 9 20 Regions Visited 4 Branch Regions 1 Pre-discovered Areas . | . . . . . Known Exits Taken . | . . . . . Unknown Exits Taken 4 | 1 1 1 1 . Scrap Searched . | . . . . . Spaces Dug . | . . . . . Terrain Destroyed 151 | . . 151 . . Melee . | . . . . . Projectile . | . . . . . AOE 151 | . . 151 . . Terrain Rammed . | . . . . . Walls Destroyed . | . . . . . Machines Disabled . | . . . . . Actions | -11 -10 -9 -9 -8 --------- Run | Yrd Mat Mat Min Mat Total 854 | 66 226 316 52 194 Wait 32 | . 11 8 . 13 Move 715 | 62 196 262 35 160 Hop . | . . . . . Pick Up 3 | . . 3 . . Fast Attach 21 | 4 3 9 1 4 Attach 3 | . . . . 3 Detach . | . . . . . Swap 1 | . . 1 . . Drop 1 | . . 1 . . Fire 60 | . 14 29 15 2 Melee . | . . . . . Ram 4 | . . 2 1 1 Kick 12 | . . 1 . 11 Crush 2 | . 2 . . . Escape Stasis . | . . . . . Rewire . | . . . . . Trap . | . . . . . Miscellaneous . | . . . . . Route ------- -11/Scrapyard -10/Materials -9/Materials -9/Mines (discovered 2 exits: *Mat x2) -8/Materials History --------- Turn | Location | Event 7 | -11/Scrapyard | Discovered new exit (range 16) 93 | -11/Scrapyard | Entered Materials 308 | -10/Materials | Build established: Mutant 447 | -10/Materials | Discovered new exit (range 11) 465 | -10/Materials | Entered another Materials area 465 | -9/Materials | Evolved 2 slots: Propulsion x2 759 | -9/Materials | Crushed by falling debris 790 | -9/Materials | Lost 3 parts (2n1w) 856 | -9/Materials | Core integrity fell below 50% 869 | -9/Materials | Discovered new exit (range 7) 875 | -9/Materials | Entered Mines 886 | -9/Mines | Discovered new exit (range 10) 893 | -9/Mines | Discovered new exit (range 7) 945 | -9/Mines | Met a Derelict bent on vengeance 961 | -9/Mines | Entered Materials 961 | -8/Materials | Evolved 2 slots: Power x2 1186 | -8/Materials | Core integrity fell below 50% 1218 | -8/Materials | Lost 7 parts (3p1n2u1w) 1281 | -8/Materials | Core integrity fell below 20% 1308 | -8/Materials | Destroyed by G-47 Trooper with Particle Gun Last Messages --------------- >>Access(Emergency) Found 2 emergency access doors: (20,77) (24,81) Map updated. >>Enumerate(Patrols) Retrieving latest reported positions... Found 5 active patrol squads. Downloaded coordinate data. 01229_ ALERT: Hostiles spotted, dispatching reinforcements to Terminal M005. 01233_ Acquired Aluminum Leg. 01242_ Critical hit (Burn: +37). 01274_ Kicked S-10 Pest out of the way. 01275_ Kicked S-10 Pest. 01276_ Kicked S-10 Pest out of the way. 01291_ Aluminum Leg destroyed. 01291_ Lgt. Ion Engine destroyed. 01293_ M-13 Machinist repairs S-10 Pest. 01301_ Aluminum Leg destroyed. Map ----- +----------------------------------------------------+ | ???????????????????????????????????????????????? | | ???????????????????????????????????????????????? | | ???????????????????????????????????????????????? | | ???????????????????????????????????????????????? | | ???????????????????????????????????????????????? | | ???????????????????????????????????????????????? | | ??????????????####?????????????????????????????? | | ??????????????# ?????????????????????????????? | | ??????????????# "????????????????????????????? | | ??????????????# "???????????"" ??????????????? | | ??????????????# ??????????"""???????????????? | | ??????????????? ????????? ????????????????? | | ???????????????? ????????#+###???????????????? | | ??????????????####+######## ????????????????? | | ??????????????? g u ??????????????????? | | ?????????????????# ] #???????????????????? | | ?????????????????# #???????????????????? | | #######??????????# #???????????????????? | | #??????????# #???????????????????? | | """"" #??????????# "" s#???????????????????? | | """"" #??????????# g T"ss#???????????????????? | | """"" #??????????# s"" #???????????????????? | | """"" ############ ss #???????????????????? | | """"" + m s #???????????????????? | | """"" ################ #???????????????????? | | """"" #??????????????# @ #???????????????????? | | #??????????????## #???????????????????? | | #######???????????????# #???????????????????? | | ??????????????????????# #???????????????????? | | ??????????????????????# #???????????????????? | | ??????????????????????# #???????????????????? | | ??????????????????????# #???????????????????? | | ??????????????????????# #???????????????????? | | ??????????????????????# #???????????????????? | | ??????????????????????+ ???????????????????? | | ??????????????????????# ##???????????????????? | | ??????????????????????####?????????????????????? | | ???????????????????????????????????????????????? | | ???????????????????????????????????????????????? | | ???????????????????????????????????????????????? | | ???????????????????????????????????????????????? | | ???????????????????????????????????????????????? | | ???????????????????????????????????????????????? | | ???????????????????????????????????????????????? | | ???????????????????????????????????????????????? | | ???????????????????????????????????????????????? | | ???????????????????????????????????????????????? | | | | | | | +----------------------------------------------------+ Best States ------------- Heat Dissipation 31 Energy Generation 32 Energy Capacity 280 Matter Stores 281 Matter Capacity 300 Sight Range 16 Terrain Scan Density 10 Power Shielding 66 Evasion (%) 55 Recoil Reduction 2 Item Schematics ----------------- None Robot Schematics ------------------ None Fabricated ------------ Nothing Alien Tech Used ----------------- None Achievements -------------- None Challenges ------------ None Game ------ Seed AbsorptionInsulatedLeg Manual? 0 Play Time 00:13:11 Cumulative 2.8 hours Start 2024.05.22 @ 20:45:30 End 2024.05.22 @ 20:56:15 Sessions 1 Manual Loads 0 Difficulty Rogue Special Mode None Game No. 7 Rogue 7 Adventurer 0 Explorer 0 Win Type - Total 0 Types 0/0/0/0/0/0/0/0/0 Lore% 2 Gallery% 7 Achievement% 7 Wizard Run 0 Options --------- Layout 0 ASCII 0 Keyboard 0 Movement Arrows Keybinds 0 Fullscreen 1 Font 18/SmallcapsGlow Map View 38x25 Zoom Use 98% Tactical HUD 1 Map Filters NONE Filters NONE Steam 1 RUN: 8adadc96-9bf2-44be-b06d-c2b496466c71